Workbook

Sheet Sheet1 (2)
E1: M
A2: QD800 streptavidin | C2: 1 | D2: microM | E2: =10^-6 -> 1e-06
A3: NT-proBNP | C3: 10000 | D3: pg/ml | E3: =0.12*10^-10 -> 1.2e-11
A4: [QD] to cover NTproBNP concentration | E4: =E3/5 -> 2.4e-12
E6: preparation
A7: solutions name | B7: [M] | C7: V microL | D7: V ml | E7: Vml from stock sol | F7: V microL | G7: from stock sol | H7: PBS V
A8: 0 | B8: =10^-6 -> 1e-06 | C8: 20 | D8: 0.02 | E8: - | F8: - | G8: - | H8: -
A9: A | B9: =10^-8 -> 1e-08 | C9: 200 | D9: =C9/1000 -> 0.2 | E9: =B9*D9/B8 -> 0.002 | F9: =E9*1000 -> 2 | G9: 0 | H9: =C9-F9 -> 198
A20: 0,5mA | B20: background | C20: with sample | D20: signal | E20: [QD]
A21: A | B21: 94 | C21: 333 | D21: =C21-B21 -> 239 | E21: =B9 -> 1e-08 | F21: 10nM | G21: 10
A22: A/2 | B22: 111 | C22: 295 | D22: =C22-B22 -> 184 | E22: =E21/2 -> 5e-09 | F22: 5nM | G22: 5
A23: A/4 | B23: 95 | C23: 240 | D23: =C23-B23 -> 145 | E23: =E22/2 -> 2.5e-09 | F23: 2,5nM | G23: 2.5
A24: A/8 | B24: 111 | C24: 140 | D24: =C24-B24 -> 29 | E24: =E23/2 -> 1.25e-09 | F24: 1,25nM | G24: 1.25
A25: A/16 | B25: 130 | C25: 141 | D25: =C25-B25 -> 11 | E25: =E24/2 -> 6.25e-10 | F25: 0,63nM | G25: 0.63
A26: A/32 | B26: 135 | C26: 139 | D26: =C26-B26 -> 4 | E26: =E25/2 -> 3.125e-10 | F26: 0,32nM | G26: 0.32
E27: =E26/2 -> 1.5625e-10 | F27: 0,16nM | G27: 0.16
A28: 1mA | B28: background | C28: with sample | D28: signal
A29: A | B29: 175 | C29: 1170 | D29: =C29-B29 -> 995
A30: A/2 | B30: 290 | C30: 517 | D30: =C30-B30 -> 227
A31: A/4 | B31: 184 | C31: 323 | D31: =C31-B31 -> 139
A32: A/8 | B32: 202 | C32: 272 | D32: =C32-B32 -> 70 | F32: =10^-8/64 -> 1.5625e-10
A33: A/16 | B33: 170 | C33: 200 | D33: =C33-B33 -> 30
A34: A/32 | B34: 185 | C34: 195 | D34: =C34-B34 -> 10
A35: A/64 | B35: 198 | C35: 206 | D35: =C35-B35 -> 8
A38: 2mA | B38: background | C38: with sample | D38: signal
A39: A | B39: 364 | C39: 3211 | D39: =C39-B39 -> 2847
A40: A/2 | B40: 369 | C40: 1275 | D40: =C40-B40 -> 906
A41: A/4 | B41: 390 | C41: 775 | D41: =C41-B41 -> 385
A42: A/8 | B42: 310 | C42: 385 | D42: =C42-B42 -> 75
A43: A/16 | B43: 310 | C43: 350 | D43: =C43-B43 -> 40
A44: A/32 | B44: 267 | C44: 304 | D44: =C44-B44 -> 37
A45: A/64 | B45: 318 | C45: 335 | D45: =C45-B45 -> 17
A47: Concentration | B47: 0.5 mA | C47: 1 mA | D47: 2 mA
A48: =B9 -> 1e-08 | B48: =C21-B21 -> 239 | C48: =C29-B29 -> 995 | D48: =C39-B39 -> 2847
A49: =A48/2 -> 5e-09 | B49: =C22-B22 -> 184 | C49: =C30-B30 -> 227 | D49: =C40-B40 -> 906
A50: =A49/2 -> 2.5e-09 | B50: =C23-B23 -> 145 | C50: =C31-B31 -> 139 | D50: =C41-B41 -> 385
A51: =A50/2 -> 1.25e-09 | B51: =C24-B24 -> 29 | C51: =C32-B32 -> 70 | D51: =C42-B42 -> 75
A52: =A51/2 -> 6.25e-10 | B52: =C25-B25 -> 11 | C52: =C33-B33 -> 30 | D52: =C43-B43 -> 40
A53: =A52/2 -> 3.125e-10 | B53: =C26-B26 -> 4 | C53: =C34-B34 -> 10 | D53: =C44-B44 -> 37
A54: =A53/2 -> 1.5625e-10 | B54: =C27-B27 -> 0 | C54: =C35-B35 -> 8 | D54: =C45-B45 -> 17

Sheet Sheet1
E1: M
A2: QD800 streptavidin | C2: 1 | D2: microM | E2: =10^-6 -> 1e-06
A3: NT-proBNP | C3: 10000 | D3: pg/ml | E3: =0.12*10^-10 -> 1.2e-11
A4: [QD] to cover NTproBNP concentration | E4: =E3/5 -> 2.4e-12
E6: preparation
A7: solutions name | B7: [M] | C7: V microL | D7: V ml | E7: Vml from stock sol | F7: V microL | G7: from sol stock | H7: PBS V | I7: number of samples
A8: A | B8: =10^-6 -> 1e-06 | C8: 20 | D8: 0.02 | E8: - | F8: - | G8: - | H8: -
A9: B | B9: =10^-8 -> 1e-08 | C9: 200 | D9: =C9/1000 -> 0.2 | E9: =B9*D9/B8 -> 0.002 | F9: =E9*1000 -> 2 | G9: A | H9: =C9-F9 -> 198 | I9: =(C9-E11-E10)/20 -> 9.99965
A10: C | B10: =10^-9 -> 1e-09 | C10: 60 | D10: =C10/1000 -> 0.06 | E10: =B10*D10/B9 -> 0.006 | F10: =E10*1000 -> 6 | G10: B | H10: =C10-F10 -> 54 | I10: =C10/20 -> 3
A11: D | B11: =10^-10 -> 1e-10 | C11: 100 | D11: =C11/1000 -> 0.1 | E11: =B11*D11/B9 -> 0.001 | F11: =E11*1000 -> 1 | G11: B | H11: =C11-F11 -> 99 | I11: =(C11-E12)/20 -> 4.9997
A12: E | B12: =10^-11 -> 1e-11 | C12: 60 | D12: =C12/1000 -> 0.06 | E12: =B12*D12/B11 -> 0.006 | F12: =E12*1000 -> 6 | G12: C | H12: =C12-F12 -> 54 | I12: =(C12-E13-E14)/20 -> 2.99967
A13: F | B13: =10^-12 -> 1e-12 | C13: 60 | D13: =C13/1000 -> 0.06 | E13: =B13*D13/B12 -> 0.006 | F13: =E13*1000 -> 6 | G13: E | H13: =C13-F13 -> 54 | I13: =(C13)/20 -> 3
A14: G | B14: =10^-13 -> 1e-13 | C14: 60 | D14: =C14/1000 -> 0.06 | E14: =B14*D14/B12 -> 0.0006 | F14: =E14*1000 -> 0.6 | G14: E | H14: =C14-F14 -> 59.4 | I14: =(C14)/20 -> 3
D15: =C15/1000 -> 0 | E15: =B15*D15/B14 -> 0 | F15: =E15*1000 -> 0
H16: total | I16: =3*6 -> 18
